Workbook

Sheet System
F2: detail | G2: 13 | M2: max exitance | N2: =MAX(Area!B2:T20) -> 6056952.482
B3: 1 | F3: set flux | G3: 100
B4: Load Rayfile | F4: status | G4: 309.7890625
B5: Code runs up to 1min per MRay
F9: z | G9: 0
B10: 2
B11: Check Exitance Diagram
B12: Refocus if necessary
F15: up to flux share | G15: 0.8
B16: 3 | F16: reached | G16: 0.7999944611
B17: Build Cumulative Curve
B18: may run a few minutes
B19: reduce detail if necessary | C19: recommended | D19: up to
C20: rayfile | D20: 1 Mrays
C21: detail | D21: 20
C22: share | D22: 0.9
C24: max theta | D24: 1.57
D25: Reduce if there is no light outside a certain angle
D26: Then load rayfile again.

Sheet Luminance
A1: Etendue | B1: Flux | C1: cum etendue | D1: cum flux
A2: 0.0008634488052 | B2: 0.02106975842 | C2: =SUM(A$2:A2) -> 0.0008634488052 | D2: =SUM(B$2:B2) -> 0.02106975842 | E2: =B2/A2 -> 24.4018618
A3: 0.0006210777936 | B3: 0.0144721214 | C3: =SUM(A$2:A3) -> 0.001484526599 | D3: =SUM(B$2:B3) -> 0.03554187981 | E3: =B3/A3 -> 23.30162428
A4: 0.000744179938 | B4: 0.01672529438 | C4: =SUM(A$2:A4) -> 0.002228706537 | D4: =SUM(B$2:B4) -> 0.0522671742 | E4: 22.47479881
A5: 0.0006210777936 | B5: 0.0139257656 | C5: =SUM(A$2:A5) -> 0.00284978433 | D5: =SUM(B$2:B5) -> 0.06619293979 | E5: 22.42193448
A6: 0.000744179938 | B6: 0.01660358459 | C6: =SUM(A$2:A6) -> 0.003593964268 | D6: =SUM(B$2:B6) -> 0.08279652438 | E6: 22.31124993
A7: 0.000744179938 | B7: 0.01659910494 | C7: =SUM(A$2:A7) -> 0.004338144206 | D7: =SUM(B$2:B7) -> 0.09939562932 | E7: 22.30523035
A8: 0.0006210777936 | B8: 0.01372022018 | C8: =SUM(A$2:A8) -> 0.004959222 | D8: =SUM(B$2:B8) -> 0.1131158495 | E8: 22.09098493
A9: 0.0006210777936 | B9: 0.01360619012 | C9: =SUM(A$2:A9) -> 0.005580299794 | D9: =SUM(B$2:B9) -> 0.1267220396 | E9: 21.90738465
A10: 0.0006210777936 | B10: 0.01358143495 | C10: =SUM(A$2:A10) -> 0.006201377587 | D10: =SUM(B$2:B10) -> 0.1403034746 | E10: 21.86752625
A11: 0.0006210777936 | B11: 0.01355065864 | C11: =SUM(A$2:A11) -> 0.006822455381 | D11: =SUM(B$2:B11) -> 0.1538541332 | E11: 21.81797317
A12: 0.0006210777936 | B12: 0.01351156235 | C12: =SUM(A$2:A12) -> 0.007443533175 | D12: =SUM(B$2:B12) -> 0.1673656956 | E12: 21.75502407
A13: 0.0006210777936 | B13: 0.01349166528 | C13: =SUM(A$2:A13) -> 0.008064610968 | D13: =SUM(B$2:B13) -> 0.1808573608 | E13: 21.72298772
A14: 0.0006210777936 | B14: 0.01345102726 | C14: =SUM(A$2:A14) -> 0.008685688762 | D14: =SUM(B$2:B14) -> 0.1943083881 | E14: 21.65755626
A15: 0.000744179938 | B15: 0.01607375148 | C15: =SUM(A$2:A15) -> 0.0094298687 | D15: =SUM(B$2:B15) -> 0.2103821396 | E15: 21.59928084
A16: 0.0006210777936 | B16: 0.01330982761 | C16: =SUM(A$2:A16) -> 0.01005094649 | D16: =SUM(B$2:B16) -> 0.2236919672 | E16: 21.43021011
A17: 0.000744179938 | B17: 0.01593121378 | C17: =SUM(A$2:A17) -> 0.01079512643 | D17: =SUM(B$2:B17) -> 0.239623181 | E17: 21.40774423
A18: 0.0006210777936 | B18: 0.01323451548 | C18: =SUM(A$2:A18) -> 0.01141620423 | D18: =SUM(B$2:B18) -> 0.2528576964 | E18: 21.30894972
A19: 0.0008634488052 | B19: 0.0183889722 | C19: =SUM(A$2:A19) -> 0.01227965303 | D19: =SUM(B$2:B19) -> 0.2712466686 | E19: 21.29711928
A20: 0.0006210777936 | B20: 0.01320810237 | C20: =SUM(A$2:A20) -> 0.01290073082 | D20: =SUM(B$2:B20) -> 0.284454771 | E20: 21.26642187
A21: 0.0006210777936 | B21: 0.0132051355 | C21: =SUM(A$2:A21) -> 0.01352180862 | D21: =SUM(B$2:B21) -> 0.2976599065 | E21: 21.26164489
A22: 0.0008634488052 | B22: 0.01830656176 | C22: =SUM(A$2:A22) -> 0.01438525742 | D22: =SUM(B$2:B22) -> 0.3159664683 | E22: 21.20167594
A23: 0.0006210777936 | B23: 0.01316650461 | C23: =SUM(A$2:A23) -> 0.01500633522 | D23: =SUM(B$2:B23) -> 0.3291329729 | E23: 21.19944513
A24: 0.000744179938 | B24: 0.0157690697 | C24: =SUM(A$2:A24) -> 0.01575051515 | D24: =SUM(B$2:B24) -> 0.3449020426 | E24: 21.18986134
A25: 0.000744179938 | B25: 0.0157039094 | C25: =SUM(A$2:A25) -> 0.01649469509 | D25: =SUM(B$2:B25) -> 0.360605952 | E25: 21.10230146
A26: 0.000744179938 | B26: 0.01569492107 | C26: =SUM(A$2:A26) -> 0.01723887503 | D26: =SUM(B$2:B26) -> 0.3763008731 | E26: 21.09022331
A27: 0.000744179938 | B27: 0.01566783886 | C27: =SUM(A$2:A27) -> 0.01798305497 | D27: =SUM(B$2:B27) -> 0.3919687119 | E27: 21.05383129
A28: 0.0008634488052 | B28: 0.01810956906 | C28: =SUM(A$2:A28) -> 0.01884650377 | D28: =SUM(B$2:B28) -> 0.410078281 | E28: 20.97352958
A29: 0.000744179938 | B29: 0.01559758798 | C29: =SUM(A$2:A29) -> 0.01959068371 | D29: =SUM(B$2:B29) -> 0.4256758689 | E29: 20.95943089
A30: 0.0006210777936 | B30: 0.0130082295 | C30: =SUM(A$2:A30) -> 0.02021176151 | D30: =SUM(B$2:B30) -> 0.4386840985 | E30: 20.94460571
A31: 0.000744179938 | B31: 0.01555343039 | C31: =SUM(A$2:A31) -> 0.02095594144 | D31: =SUM(B$2:B31) -> 0.4542375288 | E31: 20.90009364
A32: 0.0006210777936 | B32: 0.01297189702 | C32: =SUM(A$2:A32) -> 0.02157701924 | D32: =SUM(B$2:B32) -> 0.4672094259 | E32: 20.88610663
A33: 0.0006210777936 | B33: 0.01292000171 | C33: =SUM(A$2:A33) -> 0.02219809703 | D33: =SUM(B$2:B33) -> 0.4801294276 | E33: 20.80254976
A34: 0.0006210777936 | B34: 0.01285021621 | C34: =SUM(A$2:A34) -> 0.02281917482 | D34: =SUM(B$2:B34) -> 0.4929796438 | E34: 20.69018784
A35: 0.000744179938 | B35: 0.015364466 | C35: =SUM(A$2:A35) -> 0.02356335476 | D35: =SUM(B$2:B35) -> 0.5083441098 | E35: 20.64617065
A36: 0.0008634488052 | B36: 0.017796684 | C36: =SUM(A$2:A36) -> 0.02442680357 | D36: =SUM(B$2:B36) -> 0.5261407938 | E36: 20.61116292
A37: 0.000744179938 | B37: 0.01533098403 | C37: =SUM(A$2:A37) -> 0.02517098351 | D37: =SUM(B$2:B37) -> 0.5414717778 | E37: 20.60117889
A38: 0.0006210777936 | B38: 0.01273356799 | C38: =SUM(A$2:A38) -> 0.0257920613 | D38: =SUM(B$2:B38) -> 0.5542053458 | E38: 20.50237204
A39: 0.0009782700402 | B39: 0.02002289122 | C39: =SUM(A$2:A39) -> 0.02677033134 | D39: =SUM(B$2:B39) -> 0.574228237 | E39: 20.46765248
A40: 0.0008634488052 | B40: 0.01766479296 | C40: =SUM(A$2:A40) -> 0.02763378014 | D40: =SUM(B$2:B40) -> 0.59189303 | E40: 20.45841381
A41: 0.0006210777936 | B41: 0.01268772327 | C41: =SUM(A$2:A41) -> 0.02825485794 | D41: =SUM(B$2:B41) -> 0.6045807532 | E41: 20.42855726
A42: 0.000744179938 | B42: 0.01516284775 | C42: =SUM(A$2:A42) -> 0.02899903788 | D42: =SUM(B$2:B42) -> 0.619743601 | E42: 20.37524392
A43: 0.0006210777936 | B43: 0.01264086019 | C43: =SUM(A$2:A43) -> 0.02962011567 | D43: =SUM(B$2:B43) -> 0.6323844612 | E43: 20.35310281
A44: 0.000744179938 | B44: 0.01509300435 | C44: =SUM(A$2:A44) -> 0.03036429561 | D44: =SUM(B$2:B44) -> 0.6474774655 | E44: 20.28139107
A45: 0.0006210777936 | B45: 0.01259466625 | C45: =SUM(A$2:A45) -> 0.0309853734 | D45: =SUM(B$2:B45) -> 0.6600721318 | E45: 20.27872575
A46: 0.0006210777936 | B46: 0.01254954878 | C46: =SUM(A$2:A46) -> 0.03160645119 | D46: =SUM(B$2:B46) -> 0.6726216806 | E46: 20.20608193
A47: 0.000744179938 | B47: 0.01502089189 | C47: =SUM(A$2:A47) -> 0.03235063113 | D47: =SUM(B$2:B47) -> 0.6876425725 | E47: 20.18448916
A48: 0.0006210777936 | B48: 0.01249160295 | C48: =SUM(A$2:A48) -> 0.03297170893 | D48: =SUM(B$2:B48) -> 0.7001341754 | E48: 20.1127831
A49: 0.000744179938 | B49: 0.01489420791 | C49: =SUM(A$2:A49) -> 0.03371588886 | D49: =SUM(B$2:B49) -> 0.7150283833 | E49: 20.01425616
A50: 0.0006210777936 | B50: 0.01241311961 | C50: =SUM(A$2:A50) -> 0.03433696666 | D50: =SUM(B$2:B50) -> 0.7274415029 | E50: 19.98641674
A51: 0.001088052198 | B51: 0.02163784446 | C51: =SUM(A$2:A51) -> 0.03542501886 | D51: =SUM(B$2:B51) -> 0.7490793474 | E51: 19.8867706
A52: 0.000744179938 | B52: 0.01479536213 | C52: =SUM(A$2:A52) -> 0.03616919879 | D52: =SUM(B$2:B52) -> 0.7638747095 | E52: 19.88143106
A53: 0.0009782700402 | B53: 0.01942795616 | C53: =SUM(A$2:A53) -> 0.03714746883 | D53: =SUM(B$2:B53) -> 0.7833026657 | E53: 19.85950235
A54: 0.0008634488052 | B54: 0.01711293929 | C54: =SUM(A$2:A54) -> 0.03801091764 | D54: =SUM(B$2:B54) -> 0.800415605 | E54: 19.81928655
A55: 0.000744179938 | B55: 0.01474244868 | C55: =SUM(A$2:A55) -> 0.03875509758 | D55: =SUM(B$2:B55) -> 0.8151580537 | E55: 19.81032802
A56: 0.000744179938 | B56: 0.0147169955 | C56: =SUM(A$2:A56) -> 0.03949927752 | D56: =SUM(B$2:B56) -> 0.8298750492 | E56: 19.77612504
A57: 0.000744179938 | B57: 0.0146420905 | C57: =SUM(A$2:A57) -> 0.04024345745 | D57: =SUM(B$2:B57) -> 0.8445171397 | E57: 19.67547061
A58: 0.0006210777936 | B58: 0.0122028331 | C58: =SUM(A$2:A58) -> 0.04086453525 | D58: =SUM(B$2:B58) -> 0.8567199728 | E58: 19.64783353
A59: 0.000744179938 | B59: 0.01459679828 | C59: =SUM(A$2:A59) -> 0.04160871519 | D59: =SUM(B$2:B59) -> 0.871316771 | E59: 19.61460869
A60: 0.0008634488052 | B60: 0.01692004758 | C60: =SUM(A$2:A60) -> 0.04247216399 | D60: =SUM(B$2:B60) -> 0.8882368186 | E60: 19.59588974
A61: 0.000744179938 | B61: 0.01457899561 | C61: =SUM(A$2:A61) -> 0.04321634393 | D61: =SUM(B$2:B61) -> 0.9028158142 | E61: 19.59068616
A62: 0.0006210777936 | B62: 0.01214753404 | C62: =SUM(A$2:A62) -> 0.04383742172 | D62: =SUM(B$2:B62) -> 0.9149633483 | E62: 19.55879629
A63: 0.000744179938 | B63: 0.0145263732 | C63: =SUM(A$2:A63) -> 0.04458160166 | D63: =SUM(B$2:B63) -> 0.9294897215 | E63: 19.51997421
A64: 0.0008634488052 | B64: 0.01683862657 | C64: =SUM(A$2:A64) -> 0.04544505047 | D64: =SUM(B$2:B64) -> 0.9463283481 | E64: 19.50159229
A65: 0.0006210777936 | B65: 0.01207257089 | C65: =SUM(A$2:A65) -> 0.04606612826 | D65: =SUM(B$2:B65) -> 0.9584009189 | E65: 19.43809779
A66: 0.0006210777936 | B66: 0.01207161093 | C66: =SUM(A$2:A66) -> 0.04668720605 | D66: =SUM(B$2:B66) -> 0.9704725299 | E66: 19.43655216
A67: 0.000744179938 | B67: 0.01446031109 | C67: =SUM(A$2:A67) -> 0.04743138599 | D67: =SUM(B$2:B67) -> 0.984932841 | E67: =B67/A67 -> 19.43120253
A68: 0.0006210777936 | B68: 0.01205188822 | C68: =SUM(A$2:A68) -> 0.04805246378 | D68: =SUM(B$2:B68) -> 0.9969847292 | E68: 19.40479653
A69: 0.001088052198 | B69: 0.02107226014 | C69: =SUM(A$2:A69) -> 0.04914051598 | D69: =SUM(B$2:B69) -> 1.018056989 | E69: 19.36695701
A70: 0.0008634488052 | B70: 0.01671668405 | C70: =SUM(A$2:A70) -> 0.05000396479 | D70: =SUM(B$2:B70) -> 1.034773673 | E70: 19.36036503
A71: 0.000744179938 | B71: 0.01438933332 | C71: =SUM(A$2:A71) -> 0.05074814473 | D71: =SUM(B$2:B71) -> 1.049163007 | E71: 19.33582536
A72: 0.000744179938 | B72: 0.0143884605 | C72: =SUM(A$2:A72) -> 0.05149232466 | D72: =SUM(B$2:B72) -> 1.063551467 | E72: 19.3346525
A73: 0.000744179938 | B73: 0.01437507928 | C73: =SUM(A$2:A73) -> 0.0522365046 | D73: =SUM(B$2:B73) -> 1.077926546 | E73: 19.31667135
A74: 0.0009782700402 | B74: 0.01887650949 | C74: =SUM(A$2:A74) -> 0.05321477464 | D74: =SUM(B$2:B74) -> 1.096803056 | E74: 19.29580659
A75: 0.000744179938 | B75: 0.01435588058 | C75: =SUM(A$2:A75) -> 0.05395895458 | D75: =SUM(B$2:B75) -> 1.111158937 | E75: 19.29087287
A76: 0.000744179938 | B76: 0.01433979382 | C76: =SUM(A$2:A76) -> 0.05470313452 | D76: =SUM(B$2:B76) -> 1.12549873 | E76: 19.26925611
A77: 0.0008634488052 | B77: 0.01660902434 | C77: =SUM(A$2:A77) -> 0.05556658332 | D77: =SUM(B$2:B77) -> 1.142107755 | E77: 19.23567933
A78: 0.0006210777936 | B78: 0.01194105792 | C78: =SUM(A$2:A78) -> 0.05618766112 | D78: =SUM(B$2:B78) -> 1.154048813 | E78: 19.2263482
A79: 0.0009782700402 | B79: 0.01876917001 | C79: =SUM(A$2:A79) -> 0.05716593116 | D79: =SUM(B$2:B79) -> 1.172817983 | E79: 19.18608282
A80: 0.000744179938 | B80: 0.01427347019 | C80: =SUM(A$2:A80) -> 0.05791011109 | D80: =SUM(B$2:B80) -> 1.187091453 | E80: 19.18013301
A81: 0.000744179938 | B81: 0.01426936887 | C81: =SUM(A$2:A81) -> 0.05865429103 | D81: =SUM(B$2:B81) -> 1.201360822 | E81: 19.17462181
A82: 0.0006210777936 | B82: 0.01190664527 | C82: =SUM(A$2:A82) -> 0.05927536883 | D82: =SUM(B$2:B82) -> 1.213267467 | E82: 19.17094025
A83: 0.0009782700402 | B83: 0.01868929044 | C83: =SUM(A$2:A83) -> 0.06025363887 | D83: =SUM(B$2:B83) -> 1.231956757 | E83: 19.10442891
A84: 0.0006210777936 | B84: 0.01185800789 | C84: =SUM(A$2:A84) -> 0.06087471666 | D84: =SUM(B$2:B84) -> 1.243814765 | E84: 19.092629
A85: 0.0006210777936 | B85: 0.01184032156 | C85: =SUM(A$2:A85) -> 0.06149579445 | D85: =SUM(B$2:B85) -> 1.255655087 | E85: 19.06415216
A86: 0.000744179938 | B86: 0.01416202907 | C86: =SUM(A$2:A86) -> 0.06223997439 | D86: =SUM(B$2:B86) -> 1.269817116 | E86: 19.03038278
A87: 0.0008634488052 | B87: 0.01640382827 | C87: =SUM(A$2:A87) -> 0.0631034232 | D87: =SUM(B$2:B87) -> 1.286220944 | E87: 18.99803228
A88: 0.0008634488052 | B88: 0.01637060822 | C88: =SUM(A$2:A88) -> 0.063966872 | D88: =SUM(B$2:B88) -> 1.302591552 | E88: 18.9595586
A89: 0.000744179938 | B89: 0.0140828188 | C89: =SUM(A$2:A89) -> 0.06471105194 | D89: =SUM(B$2:B89) -> 1.316674371 | E89: 18.92394309
A90: 0.0006210777936 | B90: 0.01173789797 | C90: =SUM(A$2:A90) -> 0.06533212973 | D90: =SUM(B$2:B90) -> 1.328412269 | E90: 18.89923949
A91: 0.0008634488052 | B91: 0.01628208939 | C91: =SUM(A$2:A91) -> 0.06619557854 | D91: =SUM(B$2:B91) -> 1.344694359 | E91: 18.85704085
A92: 0.000744179938 | B92: 0.01399078007 | C92: =SUM(A$2:A92) -> 0.06693975848 | D92: =SUM(B$2:B92) -> 1.358685139 | E92: 18.80026504
A93: 0.0009782700402 | B93: 0.01831691784 | C93: =SUM(A$2:A93) -> 0.06791802852 | D93: =SUM(B$2:B93) -> 1.377002056 | E93: 18.72378493
A94: 0.0008634488052 | B94: 0.01612023622 | C94: =SUM(A$2:A94) -> 0.06878147732 | D94: =SUM(B$2:B94) -> 1.393122293 | E94: 18.6695912
A95: 0.0008634488052 | B95: 0.01611913081 | C95: =SUM(A$2:A95) -> 0.06964492613 | D95: =SUM(B$2:B95) -> 1.409241423 | E95: 18.66831098
A96: 0.001088052198 | B96: 0.02029586556 | C96: =SUM(A$2:A96) -> 0.07073297833 | D96: =SUM(B$2:B96) -> 1.429537289 | E96: 18.65339329
A97: 0.0006210777936 | B97: 0.0115850044 | C97: =SUM(A$2:A97) -> 0.07135405612 | D97: =SUM(B$2:B97) -> 1.441122293 | E97: 18.65306491
A98: 0.000744179938 | B98: 0.01385216942 | C98: =SUM(A$2:A98) -> 0.07209823606 | D98: =SUM(B$2:B98) -> 1.454974463 | E98: 18.61400545
A99: 0.000744179938 | B99: 0.01384780602 | C99: =SUM(A$2:A99) -> 0.072842416 | D99: =SUM(B$2:B99) -> 1.468822269 | E99: 18.60814208
A100: 0.0006210777936 | B100: 0.01155300596 | C100: =SUM(A$2:A100) -> 0.07346349379 | D100: =SUM(B$2:B100) -> 1.480375275 | E100: 18.60154409
A101: 0.0006210777936 | B101: 0.01153363258 | C101: =SUM(A$2:A101) -> 0.07408457158 | D101: =SUM(B$2:B101) -> 1.491908907 | E101: 18.57035092
A102: 0.0006210777936 | B102: 0.01151507359 | C102: =SUM(A$2:A102) -> 0.07470564938 | D102: =SUM(B$2:B102) -> 1.503423981 | E102: 18.54046902
A103: 0.0008634488052 | B103: 0.01598657058 | C103: =SUM(A$2:A103) -> 0.07556909818 | D103: =SUM(B$2:B103) -> 1.519410552 | E103: 18.51478685
A104: 0.000744179938 | B104: 0.01377272623 | C104: =SUM(A$2:A104) -> 0.07631327812 | D104: =SUM(B$2:B104) -> 1.533183278 | E104: 18.50725278
A105: 0.0006210777936 | B105: 0.01149215123 | C105: =SUM(A$2:A105) -> 0.07693435591 | D105: =SUM(B$2:B105) -> 1.544675429 | E105: 18.50356162
A106: 0.0006210777936 | B106: 0.01147126511 | C106: =SUM(A$2:A106) -> 0.07755543371 | D106: =SUM(B$2:B106) -> 1.556146694 | E106: 18.4699328
A107: 0.000744179938 | B107: 0.0137419498 | C107: =SUM(A$2:A107) -> 0.07829961364 | D107: =SUM(B$2:B107) -> 1.569888644 | E107: 18.46589662
A108: 0.0006210777936 | B108: 0.01146585451 | C108: =SUM(A$2:A108) -> 0.07892069144 | D108: =SUM(B$2:B108) -> 1.581354498 | E108: 18.46122117
A109: 0.000744179938 | B109: 0.01372883073 | C109: =SUM(A$2:A109) -> 0.07966487138 | D109: =SUM(B$2:B109) -> 1.595083329 | E109: 18.44826772
A110: 0.000744179938 | B110: 0.01370744997 | C110: =SUM(A$2:A110) -> 0.08040905131 | D110: =SUM(B$2:B110) -> 1.608790779 | E110: 18.41953709
A111: 0.0006210777936 | B111: 0.01142646756 | C111: =SUM(A$2:A111) -> 0.08103012911 | D111: =SUM(B$2:B111) -> 1.620217247 | E111: 18.39780408
A112: 0.000744179938 | B112: 0.01367239725 | C112: =SUM(A$2:A112) -> 0.08177430905 | D112: =SUM(B$2:B112) -> 1.633889644 | E112: 18.37243461
A113: 0.0008634488052 | B113: 0.01582966276 | C113: =SUM(A$2:A113) -> 0.08263775785 | D113: =SUM(B$2:B113) -> 1.649719307 | E113: 18.33306464
A114: 0.0006210777936 | B114: 0.01138289176 | C114: =SUM(A$2:A114) -> 0.08325883564 | D114: =SUM(B$2:B114) -> 1.661102199 | E114: 18.32764248
A115: 0.0006210777936 | B115: 0.01135924205 | C115: =SUM(A$2:A115) -> 0.08387991344 | D115: =SUM(B$2:B115) -> 1.672461441 | E115: 18.289564
A116: 0.0006210777936 | B116: 0.01135642055 | C116: =SUM(A$2:A116) -> 0.08450099123 | D116: =SUM(B$2:B116) -> 1.683817861 | E116: 18.28502108
A117: 0.000744179938 | B117: 0.01360563716 | C117: =SUM(A$2:A117) -> 0.08524517117 | D117: =SUM(B$2:B117) -> 1.697423498 | E117: 18.282725
A118: 0.0008634488052 | B118: 0.01577706916 | C118: =SUM(A$2:A118) -> 0.08610861997 | D118: =SUM(B$2:B118) -> 1.713200567 | E118: 18.27215356
A119: 0.000744179938 | B119: 0.0135867293 | C119: =SUM(A$2:A119) -> 0.08685279991 | D119: =SUM(B$2:B119) -> 1.726787297 | E119: 18.25731736
A120: 0.0008634488052 | B120: 0.01575650318 | C120: =SUM(A$2:A120) -> 0.08771624872 | D120: =SUM(B$2:B120) -> 1.7425438 | E120: 18.24833515
A121: 0.0006210777936 | B121: 0.01131432809 | C121: =SUM(A$2:A121) -> 0.08833732651 | D121: =SUM(B$2:B121) -> 1.753858128 | E121: 18.21724783
A122: 0.000744179938 | B122: 0.01355158921 | C122: =SUM(A$2:A122) -> 0.08908150645 | D122: =SUM(B$2:B122) -> 1.767409717 | E122: 18.21009747
A123: 0.0006210777936 | B123: 0.01130205233 | C123: =SUM(A$2:A123) -> 0.08970258424 | D123: =SUM(B$2:B123) -> 1.77871177 | E123: 18.19748259
A124: 0.0008634488052 | B124: 0.01571190929 | C124: =SUM(A$2:A124) -> 0.09056603305 | D124: =SUM(B$2:B124) -> 1.794423679 | E124: 18.1966889
A125: 0.000744179938 | B125: 0.01353951717 | C125: =SUM(A$2:A125) -> 0.09131021299 | D125: =SUM(B$2:B125) -> 1.807963196 | E125: 18.19387553
A126: 0.0009782700402 | B126: 0.01777943411 | C126: =SUM(A$2:A126) -> 0.09228848303 | D126: =SUM(B$2:B126) -> 1.82574263 | E126: 18.17436227
A127: 0.0008634488052 | B127: 0.01568968499 | C127: =SUM(A$2:A127) -> 0.09315193183 | D127: =SUM(B$2:B127) -> 1.841432315 | E127: 18.17094991
A128: 0.0006210777936 | B128: 0.01127904275 | C128: =SUM(A$2:A128) -> 0.09377300963 | D128: =SUM(B$2:B128) -> 1.852711358 | E128: 18.16043476
A129: 0.0008634488052 | B129: 0.01567319115 | C129: =SUM(A$2:A129) -> 0.09463645843 | D129: =SUM(B$2:B129) -> 1.868384549 | E129: 18.15184763
A130: 0.000744179938 | B130: 0.01350414454 | C130: =SUM(A$2:A130) -> 0.09538063837 | D130: =SUM(B$2:B130) -> 1.881888694 | E130: 18.14634317
A131: 0.000744179938 | B131: 0.01348439306 | C131: =SUM(A$2:A131) -> 0.09612481831 | D131: =SUM(B$2:B131) -> 1.895373087 | E131: =B131/A131 -> 18.1198019
A132: 0.000744179938 | B132: 0.01348078579 | C132: =SUM(A$2:A132) -> 0.09686899824 | D132: =SUM(B$2:B132) -> 1.908853872 | E132: 18.1149546
A133: 0.000744179938 | B133: 0.01347136098 | C133: =SUM(A$2:A133) -> 0.09761317818 | D133: =SUM(B$2:B133) -> 1.922325233 | E133: 18.1022899
A134: 0.0008634488052 | B134: 0.01562117961 | C134: =SUM(A$2:A134) -> 0.09847662699 | D134: =SUM(B$2:B134) -> 1.937946413 | E134: 18.09161066
A135: 0.000744179938 | B135: 0.01343921709 | C135: =SUM(A$2:A135) -> 0.09922080693 | D135: =SUM(B$2:B135) -> 1.95138563 | E135: 18.0590962
A136: 0.0006210777936 | B136: 0.01120460322 | C136: =SUM(A$2:A136) -> 0.09984188472 | D136: =SUM(B$2:B136) -> 1.962590233 | E136: 18.04057936
A137: 0.00119222979 | B137: 0.02149998973 | C137: =SUM(A$2:A137) -> 0.1010341145 | D137: =SUM(B$2:B137) -> 1.984090223 | E137: 18.03342771
A138: 0.0006210777936 | B138: 0.01119613815 | C138: =SUM(A$2:A138) -> 0.1016551923 | D138: =SUM(B$2:B138) -> 1.995286361 | E138: 18.02694971
A139: 0.000744179938 | B139: 0.01339921927 | C139: =SUM(A$2:A139) -> 0.1023993722 | D139: =SUM(B$2:B139) -> 2.00868558 | E139: 18.00534869
A140: 0.000744179938 | B140: 0.01339395409 | C140: =SUM(A$2:A140) -> 0.1031435522 | D140: =SUM(B$2:B140) -> 2.022079535 | E140: 17.99827355
A141: 0.0008634488052 | B141: 0.0155273083 | C141: =SUM(A$2:A141) -> 0.104007001 | D141: =SUM(B$2:B141) -> 2.037606843 | E141: 17.98289395
A142: 0.0008634488052 | B142: 0.01551546895 | C142: =SUM(A$2:A142) -> 0.1048704498 | D142: =SUM(B$2:B142) -> 2.053122312 | E142: 17.96918226
A143: 0.0006210777936 | B143: 0.01114659905 | C143: =SUM(A$2:A143) -> 0.1054915276 | D143: =SUM(B$2:B143) -> 2.064268911 | E143: 17.9471866
A144: 0.0006210777936 | B144: 0.01112559639 | C144: =SUM(A$2:A144) -> 0.1061126054 | D144: =SUM(B$2:B144) -> 2.075394507 | E144: 17.91337012
A145: 0.001088052198 | B145: 0.01948697826 | C145: =SUM(A$2:A145) -> 0.1072006576 | D145: =SUM(B$2:B145) -> 2.094881485 | E145: 17.90996635
A146: 0.0006210777936 | B146: 0.01112015681 | C146: =SUM(A$2:A146) -> 0.1078217354 | D146: =SUM(B$2:B146) -> 2.106001642 | E146: 17.90461182
A147: 0.0006210777936 | B147: 0.01111762607 | C147: =SUM(A$2:A147) -> 0.1084428132 | D147: =SUM(B$2:B147) -> 2.117119268 | E147: 17.90053708
A148: 0.0008634488052 | B148: 0.01542977162 | C148: =SUM(A$2:A148) -> 0.109306262 | D148: =SUM(B$2:B148) -> 2.13254904 | E148: 17.86993221
A149: 0.0008634488052 | B149: 0.01541464533 | C149: =SUM(A$2:A149) -> 0.1101697108 | D149: =SUM(B$2:B149) -> 2.147963685 | E149: 17.85241376
A150: 0.0006210777936 | B150: 0.01108731493 | C150: =SUM(A$2:A150) -> 0.1107907886 | D150: =SUM(B$2:B150) -> 2.159051 | E150: 17.85173298
A151: 0.0008634488052 | B151: 0.01541097993 | C151: =SUM(A$2:A151) -> 0.1116542374 | D151: =SUM(B$2:B151) -> 2.17446198 | E151: 17.8481687
A152: 0.0008634488052 | B152: 0.01540373699 | C152: =SUM(A$2:A152) -> 0.1125176862 | D152: =SUM(B$2:B152) -> 2.189865717 | E152: 17.8397803
A153: 0.000744179938 | B153: 0.01322238512 | C153: =SUM(A$2:A153) -> 0.1132618661 | D153: =SUM(B$2:B153) -> 2.203088102 | E153: 17.76772585
A154: 0.000744179938 | B154: 0.01319975375 | C154: =SUM(A$2:A154) -> 0.1140060461 | D154: =SUM(B$2:B154) -> 2.216287856 | E154: 17.73731469
A155: 0.0006210777936 | B155: 0.01099783609 | C155: =SUM(A$2:A155) -> 0.1146271238 | D155: =SUM(B$2:B155) -> 2.227285692 | E155: 17.70766271
A156: 0.000744179938 | B156: 0.01316944266 | C156: =SUM(A$2:A156) -> 0.1153713038 | D156: =SUM(B$2:B156) -> 2.240455135 | E156: 17.69658383
A157: 0.000744179938 | B157: 0.01316804645 | C157: =SUM(A$2:A157) -> 0.1161154837 | D157: =SUM(B$2:B157) -> 2.253623181 | E157: 17.69470767
A158: 0.0006210777936 | B158: 0.01098835285 | C158: =SUM(A$2:A158) -> 0.1167365615 | D158: =SUM(B$2:B158) -> 2.264611534 | E158: 17.69239371
A159: 0.0006210777936 | B159: 0.01098061526 | C159: =SUM(A$2:A159) -> 0.1173576393 | D159: =SUM(B$2:B159) -> 2.275592149 | E159: 17.67993538
A160: 0.0006210777936 | B160: 0.01096042734 | C160: =SUM(A$2:A160) -> 0.1179787171 | D160: =SUM(B$2:B160) -> 2.286552577 | E160: 17.64743073
A161: 0.000744179938 | B161: 0.01313104457 | C161: =SUM(A$2:A161) -> 0.118722897 | D161: =SUM(B$2:B161) -> 2.299683621 | E161: 17.64498598
A162: 0.000744179938 | B162: 0.01312921201 | C162: =SUM(A$2:A162) -> 0.119467077 | D162: =SUM(B$2:B162) -> 2.312812833 | E162: 17.64252345
A163: 0.0006210777936 | B163: 0.01095597656 | C163: =SUM(A$2:A163) -> 0.1200881548 | D163: =SUM(B$2:B163) -> 2.32376881 | E163: 17.64026451
A164: 0.000744179938 | B164: 0.0131226379 | C164: =SUM(A$2:A164) -> 0.1208323347 | D164: =SUM(B$2:B164) -> 2.336891448 | E164: 17.63368942
A165: 0.0008634488052 | B165: 0.01521788511 | C165: =SUM(A$2:A165) -> 0.1216957835 | D165: =SUM(B$2:B165) -> 2.352109333 | E165: 17.62453664
A166: 0.000744179938 | B166: 0.01311580194 | C166: =SUM(A$2:A166) -> 0.1224399635 | D166: =SUM(B$2:B166) -> 2.365225135 | E166: 17.62450353
A167: 0.000744179938 | B167: 0.01310637684 | C167: =SUM(A$2:A167) -> 0.1231841434 | D167: =SUM(B$2:B167) -> 2.378331512 | E167: 17.61183844
A168: 0.0009782700402 | B168: 0.01722467131 | C168: =SUM(A$2:A168) -> 0.1241624134 | D168: =SUM(B$2:B168) -> 2.395556183 | E168: 17.60727673
A169: 0.000744179938 | B169: 0.01309744648 | C169: =SUM(A$2:A169) -> 0.1249065934 | D169: =SUM(B$2:B169) -> 2.408653629 | E169: 17.59983818
A170: 0.000744179938 | B170: 0.01309663187 | C170: =SUM(A$2:A170) -> 0.1256507733 | D170: =SUM(B$2:B170) -> 2.421750261 | E170: 17.59874353
A171: 0.0006210777936 | B171: 0.01088293302 | C171: =SUM(A$2:A171) -> 0.1262718511 | D171: =SUM(B$2:B171) -> 2.432633194 | E171: 17.5226568
A172: 0.0006210777936 | B172: 0.01086920307 | C172: =SUM(A$2:A172) -> 0.1268929289 | D172: =SUM(B$2:B172) -> 2.443502397 | E172: 17.50055014
A173: 0.0008634488052 | B173: 0.01510513462 | C173: =SUM(A$2:A173) -> 0.1277563777 | D173: =SUM(B$2:B173) -> 2.458607532 | E173: 17.49395509
A174: 0.000744179938 | B174: 0.01298044923 | C174: =SUM(A$2:A174) -> 0.1285005576 | D174: =SUM(B$2:B174) -> 2.471587981 | E174: 17.44262183
A175: 0.000744179938 | B175: 0.01297809307 | C175: =SUM(A$2:A175) -> 0.1292447376 | D175: =SUM(B$2:B175) -> 2.484566074 | E175: 17.43945571
A176: 0.000744179938 | B176: 0.01295586861 | C176: =SUM(A$2:A176) -> 0.1299889175 | D176: =SUM(B$2:B176) -> 2.497521943 | E176: 17.40959134
A177: 0.0006210777936 | B177: 0.01081026801 | C177: =SUM(A$2:A177) -> 0.1306099953 | D177: =SUM(B$2:B177) -> 2.508332211 | E177: 17.40565855
A178: 0.0008634488052 | B178: 0.01501745928 | C178: =SUM(A$2:A178) -> 0.1314734441 | D178: =SUM(B$2:B178) -> 2.52334967 | E178: 17.39241422
A179: 0.0008634488052 | B179: 0.01501507405 | C179: =SUM(A$2:A179) -> 0.1323368929 | D179: =SUM(B$2:B179) -> 2.538364744 | E179: 17.38965178
A180: 0.0006210777936 | B180: 0.01079255251 | C180: =SUM(A$2:A180) -> 0.1329579707 | D180: =SUM(B$2:B180) -> 2.549157297 | E180: 17.37713474
A181: 0.0009782700402 | B181: 0.01699349825 | C181: =SUM(A$2:A181) -> 0.1339362408 | D181: =SUM(B$2:B181) -> 2.566150795 | E181: 17.3709687
A182: 0.0006210777936 | B182: 0.01077861871 | C182: =SUM(A$2:A182) -> 0.1345573185 | D182: =SUM(B$2:B182) -> 2.576929414 | E182: 17.35469987
A183: 0.0008634488052 | B183: 0.01497975947 | C183: =SUM(A$2:A183) -> 0.1354207674 | D183: =SUM(B$2:B183) -> 2.591909173 | E183: 17.34875232
A184: 0.000744179938 | B184: 0.01290958747 | C184: =SUM(A$2:A184) -> 0.1361649473 | D184: =SUM(B$2:B184) -> 2.604818761 | E184: 17.34740056
A185: 0.000744179938 | B185: 0.01289131941 | C185: =SUM(A$2:A185) -> 0.1369091272 | D185: =SUM(B$2:B185) -> 2.61771008 | E185: 17.32285265
A186: 0.0006210777936 | B186: 0.01075578348 | C186: =SUM(A$2:A186) -> 0.137530205 | D186: =SUM(B$2:B186) -> 2.628465864 | E186: 17.31793278
A187: 0.0006210777936 | B187: 0.0107449042 | C187: =SUM(A$2:A187) -> 0.1381512828 | D187: =SUM(B$2:B187) -> 2.639210768 | E187: 17.30041601
A188: 0.001088052198 | B188: 0.01878604149 | C188: =SUM(A$2:A188) -> 0.139239335 | D188: =SUM(B$2:B188) -> 2.657996809 | E188: 17.2657539
A189: 0.000744179938 | B189: 0.01284434038 | C189: =SUM(A$2:A189) -> 0.139983515 | D189: =SUM(B$2:B189) -> 2.67084115 | E189: 17.25972406
A190: 0.0008634488052 | B190: 0.01489420766 | C190: =SUM(A$2:A190) -> 0.1408469638 | D190: =SUM(B$2:B190) -> 2.685735357 | E190: 17.24967083
A191: 0.0009782700402 | B191: 0.01685637129 | C191: =SUM(A$2:A191) -> 0.1418252338 | D191: =SUM(B$2:B191) -> 2.702591729 | E191: 17.23079579
A192: 0.0008634488052 | B192: 0.0148578751 | C192: =SUM(A$2:A192) -> 0.1426886826 | D192: =SUM(B$2:B192) -> 2.717449604 | E192: 17.20759241
A193: 0.0006210777936 | B193: 0.01068506736 | C193: =SUM(A$2:A193) -> 0.1433097604 | D193: =SUM(B$2:B193) -> 2.728134671 | E193: 17.20407246
A194: 0.0006210777936 | B194: 0.01068326395 | C194: =SUM(A$2:A194) -> 0.1439308382 | D194: =SUM(B$2:B194) -> 2.738817935 | E194: 17.20116877
A195: 0.0008634488052 | B195: 0.01483265471 | C195: =SUM(A$2:A195) -> 0.144794287 | D195: =SUM(B$2:B195) -> 2.75365059 | E195: =B195/A195 -> 17.1783835
A196: 0.0009782700402 | B196: 0.01679435256 | C196: =SUM(A$2:A196) -> 0.145772557 | D196: =SUM(B$2:B196) -> 2.770444942 | E196: 17.16739946
A197: 0.001088052198 | B197: 0.01867861474 | C197: =SUM(A$2:A197) -> 0.1468606092 | D197: =SUM(B$2:B197) -> 2.789123557 | E197: 17.16702082
A198: 0.000744179938 | B198: 0.01277467117 | C198: =SUM(A$2:A198) -> 0.1476047892 | D198: =SUM(B$2:B198) -> 2.801898228 | E198: 17.16610528
A199: 0.000744179938 | B199: 0.01277406037 | C199: =SUM(A$2:A199) -> 0.1483489691 | D199: =SUM(B$2:B199) -> 2.814672288 | E199: 17.16528453
A200: 0.0006210777936 | B200: 0.01065766527 | C200: =SUM(A$2:A200) -> 0.1489700469 | D200: =SUM(B$2:B200) -> 2.825329954 | E200: 17.15995222
... 4220 more rows

Sheet Intensity
A2: 0.081815237 | B2: 6.367577806
A3: 0.1177082067 | B3: 71.60082355
A4: 0.1536011764 | B4: 136.8340693
A5: 0.189494146 | B5: 129.927537
A6: 0.2253871157 | B6: 117.5429761
A7: 0.2612800854 | B7: 104.175768
A8: 0.2971730551 | B8: 90.34343965
A9: 0.3330660247 | B9: 76.0573458
A10: 0.3689589944 | B10: 64.79597272
A11: 0.4048519641 | B11: 50.9346774
A12: 0.4407449338 | B12: 40.29674157
A13: 0.4766379035 | B13: 29.71211246
A14: 0.5125308731 | B14: 8.361795019
A15: 0.5484238428 | B15: 0.1017125487

Sheet Area
B1: -2.997155 | C1: -2.535912077 | D1: -2.074669154 | E1: -1.613426231 | F1: -1.152183308 | G1: -0.6909403846 | H1: -0.2296974615 | I1: 0.2315454615 | J1: 0.6927883846 | K1: 1.154031308 | L1: 1.615274231 | M1: 2.076517154 | N1: 2.537760077 | O1: 2.999003
A2: -2.999744 | B2: 0 | C2: 0 | D2: 0 | E2: 0 | F2: 18835.78187 | G2: 123969.6854 | H2: 185695.2268 | I2: 151958.1922 | J2: 112810.3866 | K2: 14746.718 | L2: 0 | M2: 0 | N2: 0 | O2: 0
A3: -2.538264385 | B3: 0 | C3: 0 | D3: 2785.742928 | E3: 160493.4132 | F3: 403657.1107 | G3: 575414.5874 | H3: 720913.5519 | I3: 662453.0487 | J3: 648796.4725 | K3: 507446.6399 | L3: 234937.0695 | M3: 4135.5033 | N3: 0 | O3: 0
A4: -2.076784769 | B4: 0 | C4: 2088.356436 | D4: 282027.3162 | E4: 610399.4679 | F4: 890099.8908 | G4: 1098133.364 | H4: 1388488.273 | I4: 1419355.245 | J4: 1321842.51 | K4: 1073663.967 | L4: 760556.6608 | M4: 337633.1306 | N4: 10650.8388 | O4: 0
A5: -1.615305154 | B5: 0 | C5: 190786.9428 | D5: 631824.9336 | E5: 1003476.906 | F5: 1551813.709 | G5: 2051231.69 | H5: 2579133.946 | I5: 2703220.133 | J5: 2435063.197 | K5: 1842630.316 | L5: 1342743.821 | M5: 853403.5581 | N5: 273439.631 | O5: 0
A6: -1.153825538 | B6: 22702.79173 | C6: 549606.8406 | D6: 966248.0257 | E6: 1668584.779 | F6: 2488722.037 | G6: 3215955.499 | H6: 3892514.3 | I6: 4036476.956 | J6: 3604877.455 | K6: 2834003.277 | L6: 2040988.501 | M6: 1320373.08 | N6: 830820.433 | O6: 42145.45833
A7: -0.6923459231 | B7: 167517.6951 | C7: 739531.238 | D7: 1270287.56 | E7: 2181587.217 | F7: 3370625.096 | G7: 4266258.909 | H7: 4984956.668 | I7: 5333295.475 | J7: 4615992.333 | K7: 3761523.992 | L7: 2657807.412 | M7: 1772503.795 | N7: 1080113.525 | O7: 265722.0961
A8: -0.2308663077 | B8: 298302.2631 | C8: 977196.0429 | D8: 1535701.223 | E8: 2543097.753 | F8: 3756147.931 | G8: 4872536.032 | H8: 5792036.002 | I8: 6056952.482 | J8: 5433507.424 | K8: 4432394.814 | L8: 3061880.735 | M8: 1955758.966 | N8: 1296761.469 | O8: 423176.3304
A9: 0.2306133077 | B9: 318637.7441 | C9: 1014376.108 | D9: 1633594.194 | E9: 2487916.403 | F9: 3730788.089 | G9: 4999598.787 | H9: 5765843.896 | I9: 5851147.138 | J9: 5299261.101 | K9: 4327084.026 | L9: 2965916.043 | M9: 2142725.017 | N9: 1365521.585 | O9: 428491.0492
A10: 0.6920929231 | B10: 220535.876 | C10: 1021408.936 | D10: 1457302.908 | E10: 2291600.763 | F10: 3272514.982 | G10: 4163682.518 | H10: 4782780.926 | I10: 4908681.423 | J10: 4574640.472 | K10: 3767591.575 | L10: 2693743.755 | M10: 1952000.842 | N10: 1325926.504 | O10: 254419.2013
A11: 1.153572538 | B11: 38164.33022 | C11: 882413.0998 | D11: 1345754.316 | E11: 1914365.577 | F11: 2550305.249 | G11: 3308263.671 | H11: 3932138.705 | I11: 3865512.756 | J11: 3505937.616 | K11: 2933000.181 | L11: 2239066.626 | M11: 1666845.591 | N11: 1083296.619 | O11: 61451.81716
A12: 1.615052154 | B12: 0 | C12: 410990.9236 | D12: 1060731.404 | E12: 1353184.179 | F12: 1955554.665 | G12: 2524550.435 | H12: 2652971.193 | I12: 2823113.114 | J12: 2633000.106 | K12: 2189534.1 | L12: 1747519.924 | M12: 1402830.189 | N12: 552150.5592 | O12: 0
A13: 2.076531769 | B13: 0 | C13: 8052.280863 | D13: 673084.8656 | E13: 1116157.17 | F13: 1353598.172 | G13: 1728041.434 | H13: 1885564.299 | I13: 1942385.308 | J13: 1825771.787 | K13: 1524217.161 | L13: 1354465.625 | M13: 730359.9721 | N13: 17085.81673 | O13: 0
A14: 2.538011385 | B14: 0 | C14: 0 | D14: 10405.64397 | E14: 411861.0713 | F14: 924073.0871 | G14: 1145822.414 | H14: 1276769.295 | I14: 1272992.946 | J14: 1233074.687 | K14: 1068056.659 | L14: 483552.4285 | M14: 9577.655807 | N14: 0 | O14: 0
A15: 2.999491 | B15: 0 | C15: 0 | D15: 0 | E15: 0 | F15: 44150.28625 | G15: 287157.8649 | H15: 426072.0718 | I15: 457540.2221 | J15: 311820.153 | K15: 51028.10431 | L15: 0 | M15: 0 | N15: 0 | O15: 0

Sheet PSD
B1: 0.1631242583 | C1: 0.4893727749 | D1: 0.8156212916 | E1: 1.141869808 | F1: 1.468118325 | G1: 1.794366841 | H1: 2.120615358 | I1: 2.446863875 | J1: 2.773112391 | K1: 3.099360908
A2: -31.43830946 | B2: 0 | C2: 0 | D2: 0.02001598321 | E2: 0.005408163831 | F2: 0.01118614409 | G2: 0.04343716964 | H2: 0.04345319481 | I2: 0.01316200508 | J2: 0 | K2: 0
A3: -26.60164647 | B3: 0 | C3: 0 | D3: 6.468406083 | E3: 2.967925006 | F3: 3.369081295 | G3: 1.881785193 | H3: 1.386861049 | I3: 0.2588837007 | J3: 0 | K3: 0
A4: -21.76498347 | B4: 0 | C4: 0 | D4: 12.76933073 | E4: 9.489426724 | F4: 8.590564674 | G4: 4.809574815 | H4: 3.466378696 | I4: 0.7087038682 | J4: 0 | K4: 0
A5: -16.92832048 | B5: 0 | C5: 27.82309374 | D5: 25.08842976 | E5: 17.47383719 | F5: 14.43433776 | G5: 9.030370261 | H5: 5.116518571 | I5: 0.9098635124 | J5: 0 | K5: 0
A6: -12.09165748 | B6: 0 | C6: 20.66425446 | D6: 21.09254856 | E6: 19.7078963 | F6: 20.1265643 | G6: 8.035855379 | H6: 6.005462325 | I6: 1.318907063 | J6: 0 | K6: 0
A7: -7.254994491 | B7: 0 | C7: 41.10540715 | D7: 49.85261307 | E7: 22.73021971 | F7: 21.63794562 | G7: 12.60854801 | H7: 8.337170787 | I7: 1.448867313 | J7: 0 | K7: 0
A8: -2.418331497 | B8: 0 | C8: 18.42147358 | D8: 46.54452348 | E8: 44.88760142 | F8: 36.82117576 | G8: 18.80156112 | H8: 12.25958338 | I8: 2.59861269 | J8: 0 | K8: 0
A9: 2.418331497 | B9: 0 | C9: 16.76874352 | D9: 42.20513645 | E9: 39.61742758 | F9: 32.81638547 | G9: 16.50114515 | H9: 10.56220731 | I9: 2.288680914 | J9: 0 | K9: 0
A10: 7.254994491 | B10: 0 | C10: 29.39046471 | D10: 35.06389718 | E10: 16.64229342 | F10: 15.3297056 | G10: 8.320861845 | H10: 5.392132627 | I10: 0.9114332493 | J10: 0 | K10: 0
A11: 12.09165748 | B11: 0 | C11: 12.11085546 | D11: 12.2760053 | E11: 11.12995964 | F11: 10.82054572 | G11: 4.102197928 | H11: 2.883389089 | I11: 0.7164580755 | J11: 0 | K11: 0
A12: 16.92832048 | B12: 0 | C12: 12.73825445 | D12: 11.42635124 | E12: 7.489091232 | F12: 6.041342094 | G12: 3.115349991 | H12: 1.758871318 | I12: 0.3021796046 | J12: 0 | K12: 0
A13: 21.76498347 | B13: 0 | C13: 0.004846262008 | D13: 4.500760734 | E13: 3.137494836 | F13: 2.560974829 | G13: 1.298674 | H13: 0.9263320076 | I13: 0.1748136728 | J13: 0 | K13: 0
A14: 26.60164647 | B14: 0 | C14: 0 | D14: 1.520501209 | E14: 0.916029758 | F14: 0.8243484833 | G14: 0.4394635643 | H14: 0.290756197 | I14: 0.04702675574 | J14: 0 | K14: 0
A15: 31.43830946 | B15: 0 | C15: 0 | D15: 0 | E15: 0.001012180794 | F15: 0.002114783195 | G15: 0.01152677723 | H15: 0.01310968151 | I15: 0.003001333394 | J15: 0 | K15: 0
